bitfinex/quotes_ETHUSD_20251130
["timestamp","ask_amount","ask_price","bid_price","bid_amount"]
[1764530841522,3.29732722,3034.6,3034.5,1.171904]
[1764530841838,0.002,3034.6,3034.5,1.171904]
[1764530844447,0.002,3034.6,3034.5,0.3837]
[1764530845263,0.002,3034.6,3034.5,0.001]
[1764530846451,3.29732722,3034.6,3034.5,0.001]
[1764530846629,3.29732722,3034.6,3034.5,0.3837]
[1764530846832,3.29732722,3034.6,3034.5,0.7664]
[1764530847727,3.29732722,3034.6,3034.5,0.3837]
[1764530847927,0.002,3034.6,3034.5,0.7664]
[1764530852373,0.002,3034.6,3034.5,0.001]
[1764530852542,0.4602,3034.6,3034.5,0.001]
[1764530852868,0.9596,3034.6,3034.5,0.001]
[1764530853165,3.29732722,3034.6,3034.5,0.3837]
[1764530853534,0.002,3034.6,3034.5,0.3837]
[1764530853930,0.002,3034.6,3034.5,0.7664]
[1764530855062,0.002,3034.6,3034.5,0.3837]
[1764530857435,0.002,3034.6,3034.5,0.7664]
[1764530859858,0.002,3034.6,3034.5,0.3837]
[1764530862677,0.4602,3034.6,3034.5,0.001]
[1764530862873,5.53370921,3034.6,3034.5,0.001]
[1764530863381,6.26030332,3034.6,3034.5,0.001]
[1764530865348,5.53370921,3034.6,3034.5,0.001]
[1764530867273,4.6444824,3034.6,3034.5,0.001]
[1764530870378,4.6444824,3034.6,3034.2,0.001]
[1764530870579,0.9542,3033.9,3032.1,1.18235725]
[1764530870778,3.43335183,3033.3,3032.3,0.3857]
[1764530870954,0.71134868,3033.2,3032.5,0.32864066]
[1764530871157,0.71134868,3033.1,3032.5,0.32864066]
[1764530871377,0.71134868,3033.2,3032.6,0.3857]
[1764530871679,4.00823357,3033.2,3032.6,0.3857]
[1764530871881,3.29677157,3033.3,3032.7,0.405504]
[1764530872046,0.71042382,3033.2,3032.7,0.405504]
[1764530872461,3.29677157,3033.3,3032.8,0.208]
[1764530872959,3.76827157,3033.3,3032.8,0.208]
[1764530875068,6.59327682,3033.4,3033.2,0.3857]
[1764530875270,7.35163941,3033.4,3033.2,0.3857]
[1764530875951,4.055001,3033.4,3033.2,0.3857]
[1764530876178,4.055001,3033.4,3033.3,0.3857]
[1764530876386,3.29663841,3033.4,3033.3,0.3857]
[1764530877279,6.59287666,3033.6,3033.3,0.3857]
[1764530879584,7.06437666,3033.6,3033.3,0.3857]
[1764530880478,7.06437666,3033.6,3033.1,0.178]
[1764530880684,0.4839,3033.2,3032.8,0.208]
[1764530880882,4.6498595,3033.5,3032.8,0.208]
[1764530880883,0.4583,3033.1,3032.8,0.208]
[1764530881055,0.4715,3033.4,3032.8,0.208]
[1764530881253,0.4715,3033.4,3033.0,0.3857]
[1764530882180,3.29673952,3033.3,3033.0,0.3857]
[1764530882891,3.29643095,3033.6,3033.2,0.3857]
[1764530883087,3.29643095,3033.6,3033.3,0.3857]
[1764530883280,7.0643619,3033.6,3033.3,0.3857]
[1764530883585,4.04143714,3033.6,3033.3,0.3857]
[1764530883756,3.29643095,3033.6,3033.3,0.3857]
[1764530884353,3.29631911,3033.7,3033.3,0.5937]
[1764530884997,3.29631911,3033.7,3033.6,0.3857]
[1764530886398,6.5919578,3034.0,3033.6,0.3857]
[1764530886695,7.0634578,3034.0,3033.6,0.3857]
[1764530886873,0.002,3033.8,3033.6,0.3857]
[1764530888282,3.29819618,3033.8,3033.6,0.3857]
[1764530889491,0.002,3033.8,3033.6,0.3857]
[1764530891390,0.71101468,3033.8,3033.6,0.3857]
[1764530891899,0.002,3033.8,3033.7,0.5937]
[1764530892594,0.002,3033.8,3033.7,0.208]
[1764530892774,1.19514099,3033.8,3033.7,0.208]
[1764530899408,4.49133717,3033.8,3033.7,0.208]
[1764530900705,4.96283717,3033.8,3033.7,0.208]
[1764530900912,5.72059771,3033.8,3033.7,0.208]
[1764530902579,1.19514099,3033.8,3033.7,0.208]
[1764530902780,4.00743717,3033.8,3033.7,0.208]
[1764530903090,0.71124099,3033.8,3033.7,0.208]
[1764530906684,0.71124099,3033.8,3033.7,0.5937]
[1764530908411,0.71124099,3033.8,3033.7,0.3857]
[1764530908705,0.71124099,3033.8,3033.7,0.5937]
[1764530909111,0.71124099,3033.8,3033.7,0.9794]
[1764530909287,0.71124099,3033.8,3033.7,0.5937]
[1764530911287,0.71124099,3033.8,3033.7,0.9794]
[1764530912614,0.71124099,3033.8,3033.7,0.5937]
[1764530922923,0.002,3033.8,3033.7,5.73544361]
[1764530942549,0.002,3033.8,3033.7,5.34974361]
[1764530942720,0.002,3033.8,3033.7,5.73544361]
[1764530943130,0.002,3033.8,3033.7,5.34974361]
[1764530946267,0.002,3033.8,3033.7,9.19974361]
[1764530952868,0.002,3033.8,3033.7,8.87110295]
[1764530953046,0.002,3033.8,3033.7,9.25680295]
[1764530955962,0.002,3033.8,3033.7,12.69273448]
[1764530957150,0.0006,3034.2,3033.8,0.405504]
[1764530957351,0.0006,3034.2,3034.0,0.405504]
[1764530957538,0.0006,3034.2,3034.1,0.613504]
[1764530960188,0.0006,3034.2,3034.1,4.63496838]
[1764530961880,0.9363,3034.2,3034.1,1.33909811]
[1764530975457,0.9363,3034.2,3034.1,2.32895047]
[1764530978292,0.9363,3034.2,3034.1,5.62482074]
[1764530978488,0.4555,3034.2,3034.1,5.62482074]
[1764530979075,0.0006,3034.2,3034.1,5.62482074]
[1764530984391,0.0006,3034.2,3034.1,5.9534614]
[1764530990393,0.4927,3034.2,3034.1,5.9534614]
[1764530990593,0.9506,3034.2,3034.1,2.65759113]
[1764530990887,0.9506,3034.2,3034.1,2.32895047]
[1764530991074,0.9506,3034.2,3034.1,1.33909811]
[1764530993865,0.9506,3034.2,3034.1,4.63496838]
[1764531000082,0.9506,3034.2,3034.1,1.33909811]
[1764531000495,0.9506,3034.2,3034.1,4.63496838]
[1764531000902,0.9506,3034.2,3034.1,1.33909811]
[1764531001303,0.9506,3034.2,3034.1,0.93359411]
[1764531001607,0.9506,3034.2,3034.1,0.208]
[1764531001608,5.12484158,3034.2,3034.1,0.208]
[1764531002008,6.07544158,3034.2,3034.1,0.208]
[1764531002181,2.77967993,3034.2,3034.1,0.208]
[1764531002977,1.20489994,3034.2,3034.1,0.53664066]
[1764531003375,1.68509994,3034.2,3034.1,0.53664066]
[1764531003704,0.0006,3034.2,3034.1,0.53664066]
[1764531003905,0.0006,3034.2,3034.1,4.21821093]
[1764531004814,0.0006,3034.2,3034.1,5.45160904]
[1764531005115,0.0006,3034.2,3034.1,6.16348053]
[1764531006712,0.0006,3034.2,3034.1,6.06118053]
[1764531008183,0.9581,3034.2,3034.1,0.93359411]
[1764531008386,0.9581,3034.2,3034.1,0.208]
[1764531008587,1.8369647,3034.2,3034.0,0.001]
[1764531008805,1.97486831,3034.1,3034.0,0.001]
[1764531009110,2.63596568,3034.1,3033.7,0.209]
[1764531009424,0.4761,3033.8,3033.7,0.001]
[1764531009603,1.78714148,3033.8,3033.7,0.001]
[1764531009910,2.26734148,3033.8,3033.7,0.001]
[1764531010417,5.56353766,3033.8,3033.7,0.001]
[1764531012014,5.77253766,3033.8,3033.7,0.001]
[1764531012645,6.10153766,3033.8,3033.7,0.001]
[1764531012801,5.77253766,3033.8,3033.7,0.001]
[1764531013936,2.47634148,3033.8,3033.7,0.001]
[1764531015108,7.78693488,3034.2,3033.7,0.001]
[1764531015109,3.46339478,3034.2,3033.7,0.001]
[1764531015336,2.18034739,3034.1,3033.7,0.001]
[1764531015547,0.4773,3033.8,3033.7,0.001]
[1764531016065,0.9575,3033.8,3033.7,0.001]
[1764531016267,0.16759639,3034.2,3033.7,0.71634066]
[1764531016429,0.4802,3034.1,3033.8,0.208]
[1764531016629,0.4802,3034.1,3033.8,3.50419272]
[1764531016828,0.4773,3033.9,3033.8,3.50419272]
[1764531017441,0.4802,3034.1,3033.8,3.50419272]
[1764531019162,0.4773,3033.9,3033.8,3.50419272]
[1764531019456,0.4802,3034.1,3033.8,3.50419272]
[1764531020358,0.0006,3034.2,3034.0,0.3867]
[1764531020558,0.0006,3034.2,3034.1,0.894504]
[1764531021159,0.0006,3034.2,3034.1,4.91596838]
[1764531021566,0.0006,3034.2,3034.1,5.39816838]
[1764531021931,0.4779,3034.2,3034.1,1.61329811]
[1764531022133,0.9581,3034.2,3034.1,1.61329811]
[1764531022449,0.4779,3034.2,3034.1,4.90916838]
[1764531023689,0.0006,3034.2,3034.1,4.90916838]
[1764531025091,0.0006,3034.2,3034.1,1.61329811]
[1764531026682,0.4666,3034.2,3034.1,4.90916838]
[1764531027392,0.4666,3034.2,3034.1,1.61329811]
[1764531027709,0.4666,3034.2,3034.1,4.90916838]
[1764531029100,0.4666,3034.2,3034.1,1.61329811]
[1764531029462,0.9471,3034.2,3034.1,4.90916838]
[1764531031006,0.9471,3034.2,3034.1,1.13109811]
[1764531031899,0.9471,3034.2,3034.1,4.42696838]
[1764531034907,0.4666,3034.2,3034.1,0.72559411]
[1764531035068,0.9471,3034.2,3034.1,0.72559411]
[1764531035797,0.9471,3034.2,3034.0,0.001]
[1764531035993,0.9356,3034.1,3034.0,0.001]
[1764531037064,0.4551,3034.1,3034.0,0.72659411]
[1764531039925,0.0006,3034.2,3034.0,3.29694449]
[1764531040135,0.4811,3034.2,3034.0,3.29694449]
[1764531041132,0.4551,3034.1,3034.0,0.001]
[1764531041322,0.4551,3034.1,3034.0,0.72659411]
[1764531041546,0.9356,3034.1,3034.0,0.72659411]
[1764531043230,0.9356,3034.1,3034.0,4.02257301]
[1764531043614,0.9376,3034.1,3034.0,4.02257301]
[1764531044534,0.4571,3034.1,3034.0,4.02257301]
[1764531045529,0.4571,3034.1,3034.0,4.01253301]
[1764531045847,0.002,3034.1,3034.0,5.52007767]
[1764531046012,0.002,3034.1,3034.0,5.13337767]
[1764531048016,0.002,3034.1,3034.0,4.80473701]
[1764531048216,0.002,3034.1,3034.0,5.13337767]
[1764531049638,0.002,3034.1,3034.0,5.14511513]
[1764531052258,0.9376,3034.1,3034.0,1.13379557]
[1764531053940,0.9376,3034.1,3034.0,0.72829157]
[1764531054661,1.64979381,3034.1,3034.0,0.01173746]
[1764531054843,2.48791864,3034.1,3034.0,0.01173746]
[1764531055863,9.2188781,3034.1,3034.0,0.01173746]
[1764531057149,5.92300783,3034.1,3034.0,0.01173746]
[1764531057745,2.48791864,3034.1,3034.0,0.01173746]
[1764531059373,5.78378891,3034.1,3034.0,0.01173746]
[1764531060464,2.48791864,3034.1,3034.0,0.01173746]
[1764531060872,5.78378891,3034.1,3034.0,0.01273746]
[1764531062169,9.2188781,3034.1,3034.0,0.01273746]
[1764531062665,5.78378891,3034.1,3034.0,0.01273746]
[1764531063468,1.55231864,3034.1,3034.0,0.01273746]
[1764531063863,2.51691864,3034.1,3034.0,0.01273746]
[1764531065769,0.71419381,3034.1,3034.0,4.24003065]
[1764531065978,0.002,3034.1,3034.0,8.64830366]
[1764531067145,0.002,3034.1,3034.0,8.97694432]
[1764531067459,0.002,3034.1,3034.0,4.82651447]
[1764531069188,0.9666,3034.1,3034.0,0.01273746]
[1764531069485,2.11825755,3034.1,3034.0,0.01273746]
[1764531069691,5.41412782,3034.1,3034.0,0.01273746]
[1764531070075,2.11825755,3034.1,3034.0,0.01273746]
[1764531070471,5.41412782,3034.1,3034.0,0.01273746]
[1764531070657,2.11825755,3034.1,3034.0,0.01273746]
[1764531073496,0.002,3034.1,3034.0,0.60743746]
[1764531073803,0.002,3034.1,3034.0,0.22073746]
[1764531074003,0.002,3034.1,3034.0,0.60743746]
[1764531074293,0.002,3034.1,3034.0,0.22073746]
[1764531074664,0.002,3034.1,3034.0,3.51671636]
[1764531074996,0.002,3034.1,3034.0,3.90341636]
[1764531075813,0.002,3034.1,3034.0,0.60743746]
[1764531076110,0.002,3034.1,3034.0,0.22073746]
[1764531079387,0.4891,3034.1,3034.0,0.22073746]
[1764531079901,0.9666,3034.1,3034.0,0.22073746]
[1764531081287,0.002,3034.1,3034.0,0.22073746]
[1764531081470,0.4891,3034.1,3034.0,0.22073746]
[1764531081998,0.002,3034.1,3034.0,0.60743746]
[1764531083219,0.9567,3034.1,3034.0,0.22073746]
[1764531085435,0.9567,3034.1,3034.0,0.60743746]
[1764531085436,0.002,3034.1,3034.0,0.60743746]
[1764531091226,0.002,3034.1,3034.0,0.22073746]
[1764531091829,0.4872,3034.1,3034.0,0.22073746]
[1764531092032,0.9545,3034.1,3034.0,0.22073746]
[1764531094002,0.4872,3034.1,3034.0,0.22073746]
[1764531096402,0.9545,3034.1,3034.0,0.22073746]
[1764531097534,0.4872,3034.1,3034.0,0.22073746]
[1764531098461,0.002,3034.1,3034.0,0.22073746]
[1764531098679,0.002,3034.1,3034.0,3.90341636]
[1764531098962,0.002,3034.1,3034.0,8.85630366]
[1764531099138,0.002,3034.1,3034.0,9.18494432]
[1764531104471,0.002,3034.1,3034.0,5.74985513]
[1764531108886,0.002,3034.1,3034.0,5.36315513]
[1764531111183,0.002,3034.1,3034.0,5.42121447]
[1764531111363,0.002,3034.1,3034.0,5.74985513]
[1764531117779,0.002,3034.1,3034.0,5.36315513]
[1764531119822,0.002,3034.1,3034.0,5.03451447]
[1764531120025,0.002,3034.1,3034.0,4.64781447]
[1764531120779,0.002,3034.1,3034.0,5.03451447]
[1764531121210,0.002,3034.1,3034.0,4.64781447]
[1764531125211,0.002,3034.1,3034.0,5.03451447]
[1764531125796,0.002,3034.1,3034.0,4.64781447]
[1764531128621,0.4562,3034.1,3034.0,4.64781447]
[1764531130040,0.9072,3034.1,3034.0,4.64781447]
[1764531131039,0.4562,3034.1,3034.0,4.64781447]
[1764531132847,0.9072,3034.1,3034.0,4.64781447]
[1764531135240,0.002,3034.1,3034.0,4.97645513]
[1764531138522,0.4562,3034.1,3034.0,4.97645513]
[1764531138716,0.9072,3034.1,3034.0,4.97645513]
[1764531139615,0.4562,3034.1,3034.0,4.97645513]
[1764531141556,0.9072,3034.1,3034.0,4.97645513]
[1764531146776,0.4562,3034.1,3034.0,4.97645513]
[1764531147761,0.002,3034.1,3034.0,5.03451447]
[1764531147941,0.002,3034.1,3034.0,5.36315513]
[1764531148150,0.002,3034.1,3034.0,4.64781447]
[1764531148363,0.4581,3034.1,3034.0,4.64781447]
[1764531148563,0.9512,3034.1,3034.0,4.64781447]
[1764531149166,0.4581,3034.1,3034.0,4.64781447]
[1764531149547,0.002,3034.1,3034.0,5.03451447]
[1764531149747,0.002,3034.1,3034.0,5.36315513]
[1764531151687,0.002,3034.1,3034.0,20.52616022]
[1764531151888,0.002,3034.1,3034.0,16.20059222]
[1764531152178,0.002,3034.1,3034.0,9.67676722]
[1764531152388,0.002,3034.1,3034.0,5.85625513]
[1764531153675,0.9512,3034.1,3034.0,1.43943157]
[1764531153847,0.9512,3034.1,3034.0,0.22073746]
[1764531154156,0.9512,3034.1,3034.0,0.94633157]
[1764531155348,0.9512,3034.1,3034.0,3.51671636]
[1764531155554,0.9512,3034.1,3034.0,4.24231047]
[1764531156884,0.9512,3034.1,3034.0,0.94633157]
[1764531160806,0.4581,3034.1,3034.0,0.94633157]
[1764531161094,0.4581,3034.1,3034.0,4.24231047]
[1764531161095,0.9512,3034.1,3034.0,4.24231047]
[1764531161392,0.9512,3034.1,3034.0,0.94633157]
[1764531162492,0.9512,3034.1,3034.0,4.24231047]
[1764531162686,0.4581,3034.1,3034.0,4.24231047]
[1764531163191,0.002,3034.1,3034.0,4.61727301]
[1764531163491,0.002,3034.1,3034.0,4.23057301]
[1764531165097,0.4581,3034.1,3034.0,4.23057301]
[1764531165416,0.9512,3034.1,3034.0,4.23057301]
[1764531166386,0.4581,3034.1,3034.0,4.23057301]
[1764531167112,0.9512,3034.1,3034.0,0.93459411]
[1764531167268,1.11743624,3034.1,3034.0,0.93459411]
[1764531167899,7.84767807,3034.1,3033.7,0.001]
[1764531168072,0.329,3033.0,3031.9,1.1624753]
[1764531168278,0.0157,3032.0,3031.9,0.99033924]
[1764531168474,0.0157,3032.0,3031.5,0.208]
[1764531168796,1.0063401,3032.0,3031.6,0.4731]
[1764531169001,1.4994401,3032.0,3031.6,0.405504]
[1764531169184,0.4931,3031.9,3031.5,10.56838245]
[1764531169385,1.4837401,3031.9,3031.5,10.56838245]
[1764531169694,0.4931,3031.9,3031.6,0.405504]
[1764531169867,0.4931,3031.9,3031.6,0.72559411]
[1764531170195,0.9906401,3031.8,3031.6,0.72559411]
[1764531170400,0.9906401,3031.8,3031.7,7.45844507]
[1764531170565,0.4931,3032.3,3031.8,0.73414466]
[1764531170770,1.48369103,3032.3,3031.9,0.208]
[1764531171174,0.4561,3032.0,3031.9,0.208]
[1764531171795,0.99059103,3032.3,3031.9,0.6784]
[1764531171969,1.48369103,3032.3,3031.9,4.11277156]
[1764531172300,0.4931,3032.2,3031.9,4.11277156]
[1764531173824,0.4931,3032.2,3031.9,7.41101864]
[1764531175644,0.1879,3032.8,3031.9,7.41101864]
[1764531175845,0.4688,3032.5,3031.9,7.90511864]
[1764531176129,0.4688,3032.5,3031.9,7.41101864]
[1764531176327,0.4688,3032.5,3032.1,3.43437156]
[1764531176896,0.4682,3032.2,3032.1,3.43437156]
[1764531177332,0.4682,3032.2,3032.1,6.73241581]
[1764531177932,0.4682,3032.2,3032.1,3.43437156]
[1764531178242,0.4682,3032.2,3032.0,3.2981368]
[1764531179100,0.45634277,3032.2,3032.0,3.2981368]
[1764531179736,0.4688,3032.4,3032.0,3.2981368]
[1764531181744,1.45934851,3032.7,3032.3,3.89507156]
[1764531182042,1.45924386,3033.0,3032.5,3.43437156]
[1764531182448,0.4688,3032.9,3032.5,3.43437156]
[1764531182656,0.4682,3032.6,3032.5,3.43437156]
[1764531182830,0.4688,3032.9,3032.5,3.43437156]
[1764531183018,0.99044386,3033.0,3032.4,0.53664066]
[1764531183019,0.99044386,3033.0,3032.7,3.43437156]
[1764531183221,0.6034,3033.1,3032.8,0.208]
[1764531183633,0.4682,3032.9,3032.8,0.208]
[1764531184363,0.1346,3033.1,3032.8,0.6687]
[1764531184521,0.6034,3033.1,3032.8,0.6687]
[1764531184719,0.4682,3032.9,3032.8,0.208]
[1764531186724,0.937,3032.9,3032.8,0.208]
[1764531187627,0.4688,3033.2,3032.8,0.6687]
[1764531187826,0.4708,3033.3,3032.8,4.46000996]
[1764531188032,0.4708,3033.3,3032.9,0.32864066]
[1764531191572,0.002,3033.3,3033.2,0.4607]
[1764531191773,0.002,3033.3,3033.2,5.52681622]
[1764531191973,0.002,3033.3,3033.2,4.83721622]
[1764531192470,0.002,3033.3,3033.2,1.074204]
[1764531193645,0.002,3033.3,3033.2,2.06435692]
[1764531193853,0.002,3033.3,3033.2,5.36120513]
[1764531194362,0.002,3033.3,3033.2,8.79557669]
[1764531194559,0.002,3033.3,3033.2,10.0152708]
[1764531195080,0.002,3033.3,3033.2,10.34391146]
[1764531197153,0.4702,3033.3,3033.2,2.32925103]
[1764531197348,0.939,3033.3,3033.2,1.19815292]
[1764531197549,0.939,3033.3,3033.2,0.208]
[1764531198162,0.002,3033.3,3033.2,3.64237156]
[1764531198489,0.4702,3033.3,3033.2,3.64237156]
[1764531199156,0.4702,3033.3,3033.2,0.208]
[1764531199684,0.4702,3033.3,3033.2,3.50484821]
[1764531200189,0.4702,3033.3,3033.2,0.208]
[1764531201654,0.939,3033.3,3033.2,0.208]
[1764531203795,1.36255875,3033.3,3033.2,0.208]
[1764531203967,0.939,3033.3,3033.2,0.208]
[1764531207507,0.939,3033.3,3032.1,0.1965]
[1764531207692,0.4531,3033.2,3032.7,0.208]
[1764531207997,4.07895395,3033.2,3032.7,0.208]
[1764531208197,0.4814,3032.8,3032.7,0.208]
[1764531208605,0.9345,3032.8,3032.7,0.208]
[1764531210740,0.4814,3032.8,3032.7,0.208]
[1764531211647,0.4531,3033.0,3032.7,3.50539176]
[1764531211929,0.90226073,3033.2,3032.8,3.43437156]
[1764531212233,0.90226073,3033.2,3032.7,3.50539176]
[1764531212529,5.07234383,3033.2,3032.7,0.6685]
[1764531212691,0.4814,3032.8,3032.7,0.208]
[1764531213091,0.9345,3032.8,3032.7,0.208]
[1764531213296,0.4814,3032.8,3032.7,0.208]
[1764531216711,0.4814,3032.8,3032.7,3.50539176]
[1764531216914,0.4814,3032.8,3032.7,0.208]
[1764531217535,0.9345,3032.8,3032.7,0.208]
[1764531217734,0.4814,3032.8,3032.7,0.208]
[1764531223131,0.9345,3032.8,3032.7,0.208]
[1764531223536,0.90455878,3032.8,3032.7,0.208]
[1764531223738,0.9345,3032.8,3032.7,0.208]
[1764531225252,4.23178303,3032.8,3032.7,0.208]
[1764531225452,8.23822389,3032.8,3032.4,0.208]
[1764531225631,0.4531,3032.7,3032.4,0.208]
[1764531225843,0.4814,3032.5,3032.4,0.208]
[1764531226353,0.9345,3032.5,3032.4,0.208]
[1764531227537,0.4814,3032.5,3032.4,0.208]
[1764531229133,0.4531,3032.7,3032.4,0.6782]
[1764531229337,0.002,3032.8,3032.4,3.97590668]
[1764531229657,0.002,3032.8,3032.5,0.4605]
[1764531230158,0.002,3032.8,3032.4,3.50570668]
[1764531230464,0.002,3032.8,3032.4,3.96620668]
[1764531230669,0.4551,3032.8,3032.4,3.96620668]
[1764531231159,0.4551,3032.8,3032.4,3.50570668]
[1764531232236,1.16448168,3032.8,3032.4,3.50570668]
[1764531232838,1.16448168,3032.8,3032.4,3.97560668]
[1764531233034,0.4551,3032.8,3032.4,3.97560668]
[1764531233234,1.16447667,3032.8,3032.4,3.97560668]
[1764531233433,0.002,3032.8,3032.4,3.50570668]
[1764531233638,0.002,3032.8,3032.5,0.4699]
[1764531233834,0.71147243,3032.8,3032.5,0.4699]
[1764531234255,0.71147243,3032.8,3032.4,3.50570668]
[1764531234456,0.002,3032.8,3032.4,3.97560668]
[1764531234652,0.4688,3032.7,3032.4,3.50570668]
[1764531235379,0.002,3032.8,3032.4,3.50570668]
[1764531235543,0.4708,3032.8,3032.4,3.50570668]
[1764531236287,0.4708,3032.8,3032.4,0.208]
[1764531236458,1.18038006,3032.8,3032.4,0.208]
[1764531236647,0.4708,3032.8,3032.4,0.208]
[1764531237081,1.18069432,3032.8,3032.4,0.208]
[1764531237384,0.71013301,3032.7,3032.4,3.97561352]
[1764531237976,1.18093301,3032.8,3032.4,3.97561352]
[1764531238273,1.18093301,3032.8,3032.4,0.6779]
[1764531239768,0.4772,3032.5,3032.4,0.208]
[1764531240645,0.946,3032.5,3032.4,0.208]
[1764531241948,0.4772,3032.5,3032.4,0.208]
[1764531242148,0.4688,3032.7,3032.4,0.208]
[1764531242449,1.17889643,3032.7,3032.4,0.208]
[1764531242864,0.4772,3032.5,3032.4,0.208]
[1764531245571,0.4688,3032.6,3032.4,0.208]
[1764531245572,0.71010628,3032.7,3032.4,0.6958]
[1764531245750,0.71010628,3032.7,3032.4,1.1657]
[1764531246147,0.71210628,3032.8,3032.6,0.4878]
[1764531246378,0.002,3032.8,3032.7,0.4878]
[1764531246785,0.71210628,3032.8,3032.7,0.4878]
[1764531246953,0.002,3032.8,3032.7,0.4878]
[1764531247553,0.71210628,3032.8,3032.7,0.4878]
[1764531247779,0.002,3032.8,3032.7,0.4878]
[1764531248999,0.002,3032.8,3032.7,0.9577]
[1764531250690,0.71210628,3032.8,3032.7,0.9577]
[1764531250888,0.002,3032.8,3032.7,0.9577]
[1764531252396,0.4792,3032.8,3032.5,4.8217079]
[1764531252994,0.002,3032.8,3032.5,4.8217079]
[1764531253185,0.002,3032.8,3032.5,4.3518079]
[1764531253386,0.002,3032.8,3032.5,4.49306724]
[1764531254102,0.002,3032.8,3032.7,0.4878]
[1764531255298,0.002,3032.8,3032.7,3.78519176]
[1764531258406,0.002,3032.8,3032.7,4.25509176]
[1764531258707,0.002,3032.8,3032.7,3.78519176]
[1764531259900,0.002,3032.8,3032.7,4.25509176]
[1764531260100,0.002,3032.8,3032.7,4.58373242]
[1764531262106,0.002,3032.8,3032.7,4.61347816]
[1764531262270,0.002,3032.8,3032.7,4.11383242]
[1764531262472,0.002,3032.8,3032.7,0.4878]
[1764531262673,0.4674,3032.8,3032.6,3.29748905]
[1764531262873,0.002,3032.8,3032.6,3.29748905]
[1764531263098,0.002,3032.8,3032.7,0.4534]
[1764531266008,0.002,3032.8,3032.7,3.75079176]
[1764531267505,0.002,3032.8,3032.7,0.4534]
[1764531267803,0.9353,3032.8,3032.5,7.64941363]
[1764531267975,0.459,3032.8,3032.5,8.12171363]
[1764531268175,0.002,3032.8,3032.5,8.12171363]
[1764531268907,0.002,3032.8,3032.7,0.4541]
[1764531269899,0.002,3032.8,3032.7,3.75149176]
[1764531270500,0.002,3032.8,3032.7,4.22379176]
[1764531275700,0.002,3032.8,3032.7,3.75149176]
[1764531275898,0.9353,3032.8,3032.5,0.32864066]
[1764531276102,0.4542,3032.6,3032.4,0.93359411]
[1764531276299,0.1833,3032.5,3032.4,0.208]
[1764531276525,0.6596,3032.5,3032.4,0.208]
[1764531276699,1.65011254,3032.5,3032.4,0.208]
[1764531277926,0.99051254,3032.5,3032.4,0.208]
[1764531279521,0.99051254,3032.5,3032.4,3.50571797]
[1764531279847,1.46674059,3032.7,3032.4,3.50571797]
[1764531281026,1.46674059,3032.7,3032.4,0.208]
[1764531281227,0.99044059,3032.7,3032.4,0.208]
[1764531281459,0.4763,3032.6,3032.4,0.208]
[1764531281666,0.457,3032.5,3032.4,0.208]
[1764531283462,0.99044059,3032.7,3032.4,3.95981797]
[1764531283664,0.99044059,3032.7,3032.4,4.43211797]
[1764531283964,0.99044059,3032.7,3032.4,3.95981797]
[1764531284129,1.46674059,3032.7,3032.4,3.95981797]
[1764531285928,1.46674059,3032.7,3032.4,0.6621]
[1764531286240,0.457,3032.5,3032.4,0.208]
[1764531286667,0.9333,3032.5,3032.4,0.208]
[1764531289228,0.457,3032.5,3032.4,0.208]
[1764531293033,0.99044059,3032.7,3032.4,0.6906]
[1764531293238,0.99044059,3032.7,3032.4,3.98829133]
[1764531293443,0.002,3032.8,3032.6,0.4826]
[1764531293838,0.99244059,3032.8,3032.6,0.4826]
[1764531294749,0.4637,3032.7,3032.4,3.97589133]
[1764531295662,0.4637,3032.7,3032.4,3.50569133]
[1764531295957,0.9512,3032.7,3032.4,3.50569133]
[1764531297369,0.4637,3032.7,3032.4,0.208]
[1764531297559,0.4637,3032.5,3032.4,0.208]
[1764531298161,0.002,3032.7,3032.4,0.208]
[1764531298388,0.4895,3032.7,3032.4,0.208]
[1764531298878,0.4895,3032.7,3032.4,3.50568681]
[1764531300374,0.002,3032.7,3032.4,3.50568681]
[1764531300562,0.002,3032.7,3032.6,0.4826]
[1764531301777,0.9532,3032.7,3032.4,0.208]
[1764531301965,0.4595,3032.5,3032.4,0.208]
[1764531302161,0.4595,3032.5,3032.4,3.50571797]
[1764531302376,0.4895,3032.7,3032.4,0.208]
[1764531304890,0.4895,3032.7,3032.4,3.50569155]
[1764531305595,0.002,3032.7,3032.6,4.24957477]
[1764531305991,0.002,3032.7,3032.6,4.71977477]
[1764531306468,0.002,3032.7,3032.6,5.43032251]
[1764531306669,0.002,3032.7,3032.6,8.727823]
[1764531309082,0.002,3032.7,3032.6,8.39918234]
[1764531310299,0.002,3032.7,3032.6,8.727823]
[1764531310601,0.002,3032.7,3032.6,4.49064823]
[1764531312266,0.002,3032.7,3032.6,5.28948889]
[1764531314995,0.002,3032.7,3032.6,6.015083]
[1764531317407,0.002,3033.1,3033.0,0.73414466]
[1764531317701,0.002,3033.1,3033.0,16.59528699]
[1764531318003,0.002,3033.1,3033.0,20.02436645]
[1764531318196,0.002,3033.1,3033.0,21.67806545]
[1764531318413,0.002,3033.1,3033.0,21.34942479]
[1764531318607,0.002,3033.1,3033.0,21.67806545]
[1764531319274,0.002,3033.1,3033.0,22.13242445]
[1764531320276,0.002,3033.1,3033.0,36.86256345]
[1764531320478,0.002,3033.1,3033.0,36.12671045]
[1764531321410,0.002,3033.1,3033.0,12.92628645]
[1764531321786,0.002,3033.1,3033.0,36.66255345]
[1764531322307,0.002,3033.1,3033.0,23.63454945]
[1764531322479,0.002,3033.1,3033.0,12.92628645]
[1764531324211,0.002,3033.1,3033.0,16.92616345]
[1764531325306,0.002,3033.1,3033.0,38.09451845]